bitfinex-derivatives/quotes_SOLF0:USTF0_20250929
["timestamp","ask_amount","ask_price","bid_price","bid_amount"]
[1759119806405,7.2,210.07,210.0,1.39091509]
[1759119806999,11.4834,210.04,210.0,117.49091509]
[1759119807308,4.2834,210.04,210.0,1.39091509]
[1759119807999,11.4834,210.04,210.0,1.39091509]
[1759119808403,11.4834,210.04,209.99,116.08]
[1759119808404,4.2836,210.03,209.98,1.39091509]
[1759119808607,11.4836,210.03,209.99,116.08]
[1759119808907,7.2,210.02,209.97,14.86068587]
[1759119809101,4.2839,210.02,209.97,14.86068587]
[1759119809604,4.2839,210.02,209.98,116.08]
[1759119810009,4.2839,210.02,209.97,14.86068587]
[1759119810207,4.2839,210.02,209.98,116.06]
[1759119811307,4.2833,210.04,209.98,117.45091509]
[1759119811501,4.2833,210.04,209.99,116.06]
[1759119812414,4.2833,210.04,210.0,116.04]
[1759119812616,11.4833,210.04,210.0,116.04]
[1759119813412,11.4833,210.04,209.98,1.39091509]
[1759119813612,11.4833,210.04,209.99,116.04]
[1759119813910,4.2833,210.04,209.98,1.39091509]
[1759119814111,4.2833,210.04,209.99,116.02]
[1759119814513,4.2833,210.04,210.0,116.04]
[1759119814714,11.4833,210.04,210.0,116.04]
[1759119815213,4.2836,210.03,210.0,116.04]
[1759119815817,4.2836,210.03,210.0,116.02]
[1759119816809,4.2838,210.02,210.0,116.02]
[1759119818317,11.4838,210.02,210.0,116.02]
[1759119818524,11.4838,210.02,209.97,14.86068587]
[1759119818822,11.4838,210.02,209.98,116.0]
[1759119819612,11.4838,210.02,209.99,116.0]
[1759119820219,4.2838,210.02,209.99,116.0]
[1759119821122,4.2838,210.02,209.97,14.86068587]
[1759119821324,4.2838,210.02,209.98,116.0]
[1759119821719,11.4838,210.02,209.98,116.0]
[1759119822126,4.284,210.01,209.98,116.0]
[1759119822426,4.284,210.01,209.99,116.0]
[1759119823526,7.2,210.0,209.99,116.0]
[1759119823716,4.2843,209.99,209.97,130.86068587]
[1759119825024,4.2843,209.99,209.97,14.86068587]
[1759119825327,11.4843,209.99,209.97,14.86068587]
[1759119825532,11.4843,209.99,209.97,14.03210458]
[1759119825533,7.2,209.98,209.97,14.03210458]
[1759119825724,4.2847,209.97,209.95,116.0]
[1759119826224,4.2847,209.97,209.95,130.02346819]
[1759119826621,4.2844,209.99,209.96,116.0]
[1759119827319,4.2844,209.99,209.93,346.34]
[1759119827521,4.2839,210.01,209.96,0.82870955]
[1759119827922,4.2839,210.01,209.97,116.0]
[1759119828126,4.2839,210.01,209.96,0.82870955]
[1759119828527,4.2839,210.01,209.97,116.0]
[1759119829034,4.2836,210.03,209.96,0.82870955]
[1759119829232,7.2,210.04,209.98,116.0]
[1759119829532,7.2,210.04,209.96,0.82870955]
[1759119829733,7.2,210.04,209.98,116.0]
[1759119830729,4.284,210.01,209.98,116.0]
[1759119831933,7.2,210.0,209.98,116.0]
[1759119832233,7.2,210.0,209.97,116.0]
[1759119832733,11.4842,210.0,209.97,116.0]
[1759119832933,4.2842,210.0,209.97,116.0]
[1759119833134,4.2842,210.0,209.96,0.82870955]
[1759119833335,4.2842,210.0,209.97,116.0]
[1759119839036,4.2842,210.0,209.96,0.82870955]
[1759119839237,4.2842,210.0,209.97,116.0]
[1759119839629,4.2842,210.0,209.96,0.82870955]
[1759119839833,4.2842,210.0,209.97,116.0]
[1759119840136,4.2842,210.0,209.96,0.82870955]
[1759119840439,4.2838,210.02,209.97,116.0]
[1759119840638,11.5938,210.02,209.97,116.0]
[1759119841337,4.2841,210.01,209.97,116.0]
[1759119841538,7.31,210.04,209.97,116.0]
[1759119842033,4.2837,210.02,209.96,0.82870955]
[1759119842238,73.9379,210.05,209.97,116.0]
[1759119842441,73.9379,210.05,209.96,0.82870955]
[1759119842640,73.9379,210.05,209.97,116.0]
[1759119842935,73.9379,210.05,209.98,116.0]
[1759119843441,7.31,210.04,209.98,116.0]
[1759119845343,7.31,210.04,209.96,0.82870955]
[1759119845548,4.284,210.01,209.97,116.0]
[1759119847442,4.284,210.01,209.96,0.82870955]
[1759119847945,4.2836,210.03,209.97,116.0]
[1759119848444,4.2836,210.03,209.96,0.82870955]
[1759119848838,7.31,210.04,209.96,0.82870955]
[1759119849041,7.31,210.04,209.97,80.5]
[1759119849237,4.2841,210.01,209.97,80.5]
[1759119850040,11.5941,210.01,209.97,80.5]
[1759119850235,11.5941,210.01,209.97,116.0]
[1759119850236,4.2843,209.99,209.97,116.0]
[1759119852646,11.5939,210.01,209.97,116.0]
[1759119856147,12.2543,209.99,209.96,0.82870955]
[1759119856352,4.2843,209.99,209.96,0.82870955]
[1759119856954,12.2543,209.99,209.96,0.82870955]
[1759119859859,7.97,209.99,209.96,0.82870955]
[1759119860260,7.97,210.03,209.96,0.82870955]
[1759119860661,7.97,209.97,209.95,101.90069009]
[1759119860853,7.97,209.97,209.94,116.0]
[1759119861952,7.97,209.97,209.94,130.15268004]
[1759119862153,4.2849,209.96,209.94,14.15268004]
[1759119862350,4.2849,209.96,209.93,116.82873915]
[1759119863753,4.2849,209.96,209.93,0.82873915]
[1759119863959,4.2849,209.96,209.93,116.82873915]
[1759119864153,4.2849,209.96,209.93,0.82873915]
[1759119864349,4.2849,209.96,209.93,93.80873915]
[1759119864554,4.2849,209.96,209.93,116.82873915]
[1759119865262,7.86,209.95,209.93,116.82873915]
[1759119865465,7.86,209.95,209.93,0.82873915]
[1759119865660,7.86,209.95,209.93,116.82873915]
[1759119865960,4.2849,209.96,209.93,0.82873915]
[1759119866356,12.1449,209.96,209.93,0.82873915]
[1759119866964,12.1449,209.96,209.93,15.11350073]
[1759119867156,12.1449,209.96,209.93,0.82873915]
[1759119867361,7.86,209.96,209.93,0.82873915]
[1759119869163,4.2849,209.97,209.93,0.82873915]
[1759119869366,7.86,209.96,209.93,0.82873915]
[1759119869759,4.2849,209.97,209.93,0.82873915]
[1759119869965,7.86,209.96,209.93,0.82873915]
[1759119871669,7.86,209.96,209.93,15.01636435]
[1759119880873,12.1443,209.99,209.93,15.01636435]
[1759119881874,7.86,209.97,209.93,15.01636435]
[1759119882774,12.1447,209.98,209.93,131.01636435]
[1759119883186,12.1447,209.98,209.94,115.98]
[1759119883971,7.86,209.98,209.94,115.98]
[1759119884372,7.86,209.98,209.93,15.01636435]
[1759119884574,7.86,209.99,209.94,115.98]
[1759119884769,4.2842,210.0,209.94,115.98]
[1759119884969,4.2842,210.0,209.93,15.01636435]
[1759119885173,12.1442,210.0,209.94,101.32]
[1759119885479,12.1442,210.0,209.93,15.01636435]
[1759119885680,12.1442,210.0,209.94,115.98]
[1759119886377,7.86,209.98,209.94,115.98]
[1759119888985,12.1447,209.98,209.93,15.01636435]
[1759119889178,7.86,209.97,209.94,115.98]
[1759119891184,4.2847,209.98,209.94,115.98]
[1759119891385,12.1447,209.98,209.94,115.98]
[1759119891586,7.86,209.97,209.94,115.98]
[1759119892786,4.2847,209.98,209.94,115.98]
[1759119893686,12.1447,209.98,209.94,115.98]
[1759119896687,4.2849,209.97,209.94,115.98]
[1759119896890,11.8249,209.97,209.94,115.98]
[1759119899791,11.8249,209.97,209.93,15.01636435]
[1759119899989,11.8249,209.97,209.94,115.96]
[1759119900190,11.8249,209.97,209.93,15.01636435]
[1759119900385,11.8249,209.97,209.95,115.96]
[1759119902294,11.8249,209.97,209.94,115.96]
[1759119904392,4.2849,209.97,209.94,115.96]
[1759119904593,4.2849,209.97,209.95,115.96]
[1759119906694,4.2849,209.97,209.93,15.01636435]
[1759119906994,4.2849,209.97,209.94,115.94]
[1759119909689,8.93304346,209.99,209.94,115.94]
[1759119909888,4.2851,209.96,209.94,115.94]
[1759119910489,4.2851,209.96,209.95,115.94]
[1759119910890,11.8251,209.96,209.93,15.01636435]
[1759119911090,11.8251,209.96,209.94,115.94]
[1759119911395,4.2851,209.96,209.94,115.94]
[1759119912695,4.2851,209.96,209.93,15.01636435]
[1759119912896,4.2851,209.96,209.94,115.94]
[1759119913097,4.2851,209.96,209.93,15.01636435]
[1759119913296,4.2851,209.96,209.94,115.94]
[1759119915799,4.2851,209.96,209.95,115.92]
[1759119916499,4.2851,209.96,209.93,15.01636435]
[1759119916799,11.6746,209.98,209.94,115.92]
[1759119917302,7.39,209.98,209.94,115.92]
[1759119918601,1.39304346,209.99,209.94,115.92]
[1759119918602,4.2849,209.97,209.94,115.92]
[1759119920104,4.2851,209.96,209.95,115.92]
[1759119920402,11.6751,209.96,209.95,115.92]
[1759119920703,11.6751,209.96,209.89,9.1681946]
[1759119920704,7.39,209.96,209.89,115.92]
[1759119920899,1.39304346,209.95,209.9,115.92]
[1759119921498,7.39,209.94,209.9,115.92]
[1759119921803,4.2859,209.92,209.9,130.07393595]
[1759119922196,11.6759,209.92,209.9,130.07393595]
[1759119924100,11.6759,209.92,209.9,14.15393595]
[1759119924296,11.6759,209.92,209.9,115.92]
[1759119925307,4.2859,209.92,209.9,115.92]
[1759119925502,4.2859,209.92,209.9,130.51111213]
[1759119927405,12.2559,209.92,209.9,130.51111213]
[1759119928205,4.2859,209.92,209.9,130.51111213]
[1759119930708,12.2559,209.92,209.9,130.51111213]
[1759119934307,4.2854,209.94,209.9,130.51111213]
[1759119934913,7.97,209.98,209.91,1.39304346]
[1759119935115,7.97,209.98,209.92,115.92]
[1759119935503,4.2851,209.96,209.92,115.92]
[1759119936912,4.2853,209.95,209.92,115.92]
[1759119937110,12.2553,209.95,209.92,115.92]
[1759119938016,4.2853,209.95,209.92,115.92]
[1759119939111,4.2848,209.97,209.92,115.92]
[1759119939515,4.2848,209.97,209.93,1.39304346]
[1759119942413,4.2844,209.99,209.93,1.39304346]
[1759119942620,4.2844,209.99,209.94,115.9]
[1759119944016,12.2547,209.98,209.94,115.9]
[1759119944819,4.2847,209.98,209.94,115.9]
[1759119946925,12.2547,209.98,209.94,115.9]
[1759119949627,66.6431,210.0,209.9,14.59111213]
[1759119949928,7.97,209.99,209.91,115.88]
[1759119950322,4.2851,209.96,209.91,115.88]
[1759119950720,7.97,209.99,209.91,115.88]
[1759119950929,4.2845,209.98,209.9,4.286]
[1759119951126,4.2845,209.98,209.91,115.88]
[1759119953125,4.2841,210.01,209.91,115.88]
[1759119953425,7.97,210.04,209.92,115.86]
[1759119953619,66.628,210.05,209.93,115.86]
[1759119953822,7.91,210.03,209.93,115.86]
[1759119954225,4.2845,209.99,209.93,115.86]
[1759119954421,7.91,210.02,209.91,4.2858]
[1759119954927,66.6339,210.03,209.92,115.86]
[1759119955123,7.91,210.01,209.92,115.86]
[1759119955733,4.2847,209.98,209.92,115.86]
[1759119955930,4.2847,209.98,209.91,4.2858]
[1759119956233,4.2847,209.98,209.92,115.86]
[1759119956930,4.2847,209.98,209.93,115.86]
[1759119958838,4.2847,209.98,209.94,115.84]
[1759119961836,4.2847,209.98,209.91,4.2858]
[1759119962044,4.2847,209.98,209.92,115.84]
[1759119962948,4.2849,209.97,209.93,115.84]
[1759119963139,7.91,210.0,209.93,115.84]
[1759119963641,7.91,210.0,209.94,115.84]
[1759119964540,4.2844,209.99,209.94,115.84]
[1759119965443,4.2847,209.98,209.94,115.84]
[1759119966142,7.91,209.96,209.9,127.96863896]
[1759119966347,7.91,209.99,209.9,125.79186325]
[1759119966644,66.6432,210.0,209.9,241.63186325]
[1759119966945,4.2855,209.94,209.9,115.84]
[1759119968548,66.6432,210.0,209.9,115.84]
[1759119968549,7.91,210.0,209.9,115.84]
[1759119969543,4.2846,209.98,209.9,4.286]
[1759119969747,4.2846,209.98,209.91,95.02]
[1759119969947,4.2846,209.98,209.91,2.17677571]
[1759119970148,4.2846,209.98,209.92,43.42]
[1759119970543,4.2846,209.98,209.91,14.37117717]
[1759119970740,4.2846,209.98,209.93,115.82]
[1759119971751,4.2842,210.0,209.93,115.82]
[1759119972457,4.2842,210.0,209.94,115.82]
[1759119974257,4.2842,210.0,209.92,12.19420146]
[1759119974554,4.2842,210.0,209.93,115.82]
[1759119974748,4.2842,210.0,209.92,12.19420146]
[1759119975055,4.2842,210.0,209.93,115.82]
[1759119976250,4.2842,210.0,209.92,12.19420146]
[1759119976455,4.2842,210.0,209.94,115.82]
[1759119976657,4.2842,210.0,209.92,12.19420146]
[1759119976859,4.2842,210.0,209.93,115.82]
[1759119977353,4.2842,210.0,209.94,115.82]
[1759119979359,4.2842,210.0,209.95,115.8]
[1759119979557,11.7742,210.0,209.95,115.8]
[1759119979956,4.2842,210.0,209.95,115.8]
[1759119980160,4.2842,210.0,209.96,115.8]
[1759119981956,11.7742,210.0,209.96,115.8]
[1759119983862,11.7742,210.0,209.93,7.90860146]
[1759119984163,11.7742,210.0,209.96,115.8]
[1759119984363,4.2842,210.0,209.96,115.8]
[1759119986667,4.2842,210.0,209.96,121.12223927]
[1759119987161,4.2842,210.0,209.96,5.32223927]
[1759119987363,4.2842,210.0,209.96,121.12223927]
[1759119988167,11.8342,210.0,209.96,121.12223927]
[1759119988771,11.8342,210.0,209.96,5.32223927]
[1759119990466,11.8342,210.0,209.95,84.50223927]
[1759119990967,4.2845,209.99,209.95,84.50223927]
[1759119991169,7.55,210.02,209.95,5.32223927]
[1759119991369,7.55,210.02,209.91,2.17677571]
[1759119991370,7.55,210.02,209.94,5.32223927]
[1759119992673,7.55,210.0,209.93,5.32223927]
[1759119993573,4.2849,209.97,209.93,5.32223927]
[1759119993773,7.55,209.96,209.93,5.32223927]
[1759119994072,4.2849,209.97,209.93,5.32223927]
[1759119995171,11.8349,209.97,209.93,5.32223927]
[1759119995766,4.2849,209.97,209.93,5.32223927]
[1759119995970,7.55,209.96,209.93,5.32223927]
[1759119996274,7.55,209.96,209.92,5.32223927]
[1759119997174,4.2849,209.97,209.93,5.32223927]
[1759119997773,11.8349,209.97,209.93,5.32223927]
[1759120001779,4.2849,209.97,209.93,5.32223927]
[1759120001978,7.55,209.96,209.93,5.32223927]
[1759120003382,4.2849,209.97,209.93,5.32223927]
[1759120003581,7.55,209.96,209.93,5.32223927]
[1759120005783,7.55,209.96,209.92,115.76]
[1759120006277,11.8349,209.97,209.92,117.15320079]
[1759120006483,7.55,209.96,209.92,117.15320079]
[1759120008788,7.55,209.96,209.93,5.32377638]
[1759120008789,4.2851,209.96,209.93,5.32377638]
[1759120008992,7.55,209.95,209.93,5.32377638]
[1759120012383,11.8351,209.96,209.93,5.32377638]
[1759120016696,11.8351,209.96,209.94,115.74]
[1759120016885,7.84,209.95,209.94,115.74]
[1759120018794,7.84,209.97,209.94,121.06540158]
[1759120019696,4.2846,209.98,209.94,121.06540158]
[1759120019895,4.2846,209.98,209.94,115.74]
[1759120020298,7.84,209.95,209.94,115.74]
[1759120020490,1.39320079,210.0,209.9,9.37886536]
[1759120020691,7.84,209.98,209.91,115.74]
[1759120020891,1.39320079,209.97,209.91,115.74]
[1759120021092,7.84,209.96,209.91,115.74]
[1759120021494,1.39320079,209.97,209.91,115.74]
[1759120021694,7.84,209.94,209.91,115.74]
[1759120022992,4.2848,209.97,209.91,115.74]
[1759120023393,9.23320079,209.99,209.91,115.74]
[1759120023793,7.84,209.98,209.91,115.74]
[1759120024800,12.1251,209.96,209.91,115.74]
[1759120026099,7.84,209.95,209.91,115.74]
[1759120026994,12.1253,209.95,209.92,115.72]
[1759120028105,4.2853,209.95,209.92,115.72]
[1759120029505,12.1253,209.95,209.92,115.72]
[1759120029907,4.2847,209.97,209.92,115.72]
[1759120030207,12.1247,209.97,209.92,115.72]
[1759120033212,7.22,209.96,209.92,115.72]
[1759120038210,7.22,209.95,209.91,7.98566457]
[1759120038412,7.22,209.97,209.92,115.7]
[1759120038716,1.39320079,209.98,209.92,115.7]
[1759120039010,7.22,209.95,209.92,115.7]
[1759120039415,1.39320079,209.96,209.92,115.7]
[1759120039711,7.22,209.94,209.92,115.7]
[1759120041418,11.5055,209.94,209.92,115.7]
[1759120041911,7.22,209.95,209.91,115.7]
[1759120042608,1.39320079,209.96,209.91,115.7]
[1759120043209,4.2857,209.93,209.91,115.7]
[1759120046715,4.2857,209.93,209.92,5.33163909]
[1759120047015,4.2857,209.93,209.91,121.03163909]
[1759120049918,11.5457,209.93,209.91,121.03163909]
[1759120050318,4.2857,209.93,209.91,121.03163909]
[1759120050619,4.2852,209.95,209.91,121.03163909]
[1759120050819,11.5452,209.95,209.91,121.03163909]
[1759120053420,11.5452,209.95,209.92,5.33163909]
[1759120053812,4.2855,209.94,209.92,5.33163909]
[1759120055024,4.2855,209.94,209.91,121.03163909]
[1759120059523,7.26,209.95,209.91,121.03163909]
[1759120059727,7.26,209.95,209.92,5.33163909]
[1759120060830,4.285,209.96,209.92,5.33163909]
[1759120061030,11.545,209.96,209.92,5.33163909]
[1759120063135,7.26,209.95,209.92,5.33163909]
[1759120063836,11.5453,209.95,209.92,5.33163909]
[1759120064439,7.26,209.98,209.92,5.33163909]
[1759120065740,11.5455,209.94,209.92,5.33163909]
[1759120067241,11.5455,209.94,209.91,120.99163909]
[1759120068843,4.2857,209.93,209.91,120.99163909]
[1759120069139,7.26,209.94,209.89,120.99163909]
[1759120069440,7.26,209.94,209.89,115.66]
[1759120069839,66.6596,209.95,209.89,115.66]
[1759120070030,7.26,209.94,209.89,115.66]
[1759120070230,66.6596,209.95,209.89,115.66]
[1759120070537,4.286,209.91,209.89,115.66]
[1759120073541,11.546,209.91,209.89,115.66]
[1759120073742,4.286,209.91,209.89,115.66]
[1759120077748,11.806,209.91,209.89,115.66]
[1759120077948,7.52,209.9,209.89,115.66]
[1759120079747,4.286,209.91,209.89,115.66]
[1759120080548,7.52,209.98,209.89,115.66]
[1759120080844,7.52,210.02,209.89,115.66]
[1759120081047,4.2851,209.96,209.89,7.98566457]
[1759120081349,4.2851,209.96,209.9,115.64]
[1759120081544,66.6428,210.0,209.9,115.64]
[1759120081744,4.2855,209.94,209.9,115.64]
[1759120081950,4.2855,209.94,209.92,5.33445591]
[1759120082150,4.2855,209.94,209.91,48.89445591]
[1759120082653,4.2855,209.94,209.91,43.56]
[1759120084151,11.8057,209.93,209.91,43.56]
[1759120084350,7.52,209.93,209.9,5.33445591]
[1759120084552,7.52,209.93,209.89,5.33445591]
[1759120084748,7.52,209.95,209.89,5.33445591]
[1759120085653,11.806,209.91,209.89,5.33445591]
[1759120085951,7.52,209.9,209.89,5.33445591]
[1759120086152,7.52,209.9,209.88,5.33445591]
[1759120086349,4.2864,209.89,209.87,19.91193605]
[1759120086545,4.2864,209.89,209.87,5.33445591]
[1759120087545,4.2868,209.87,209.86,7.272e-05]
[1759120087849,4.2868,209.87,209.82,7.98566457]
[1759120087850,7.52,209.88,209.82,14.54233914]
[1759120088049,7.52,209.87,209.79,0.82928224]
[1759120089546,4.2878,209.83,209.79,0.82928224]
[1759120091555,4.2878,209.83,209.79,15.13358253]
[1759120092158,4.2872,209.85,209.79,15.13358253]
[1759120092362,4.2872,209.85,209.79,130.77358253]
[1759120094771,4.2868,209.87,209.79,132.95129019]
[1759120095369,4.2868,209.87,209.8,115.64]
[1759120096977,11.6156,209.93,209.85,2.17770766]
[1759120097176,11.6156,209.93,209.86,115.64]
[1759120097377,11.6156,209.93,209.85,2.17770766]
[1759120097580,11.6156,209.93,209.86,88.18]
[1759120098182,4.2856,209.93,209.87,4.2867]
[1759120098376,4.2856,209.93,209.88,2.17770766]
[1759120098575,4.2856,209.93,209.87,4.2867]
[1759120098778,4.2856,209.93,209.88,2.17770766]
[1759120099280,4.2856,209.93,209.89,109.0]
[1759120101279,11.6156,209.93,209.89,109.0]
[1759120102072,11.6156,209.93,209.88,2.17770766]
[1759120106787,4.2856,209.93,209.88,2.17770766]
[1759120106982,7.66,209.92,209.88,2.17770766]
[1759120107385,7.66,209.92,209.87,48.76]
[1759120109188,11.9459,209.92,209.87,48.76]
[1759120109589,4.2861,209.91,209.87,48.76]
[1759120109793,7.66,209.93,209.83,10.16337223]
[1759120110092,7.66,209.93,209.83,86.70337223]
[1759120110390,66.6617,209.94,209.83,86.70337223]
[1759120110579,4.2865,209.89,209.83,86.70337223]
[1759120110981,4.2865,209.89,209.83,78.71770766]
[1759120114693,4.2867,209.88,209.83,78.71770766]
[1759120114894,7.66,209.87,209.83,78.71770766]
[1759120115093,11.9467,209.88,209.82,123.60566457]
[1759120118898,11.9467,209.88,209.82,115.62]
[1759120120198,4.2869,209.87,209.81,7.98566457]
[1759120120398,7.66,209.86,209.82,115.62]
[1759120121191,11.9471,209.86,209.8,7.98566457]
[1759120121397,11.9471,209.86,209.81,115.62]
[1759120121590,66.6686,209.92,209.81,115.62]
[1759120121591,7.66,209.85,209.81,115.62]
[1759120121788,7.66,209.83,209.8,7.98566457]
[1759120121988,7.66,209.83,209.79,130.75358253]
[1759120122596,11.9477,209.83,209.79,130.75358253]
[1759120126697,4.2877,209.83,209.8,115.62]
[1759120126901,7.66,209.82,209.8,115.62]
[1759120127402,4.2877,209.83,209.8,115.62]
[1759120128200,11.9472,209.85,209.8,115.62]
[1759120132501,4.2872,209.85,209.8,115.62]
[1759120132705,11.9472,209.85,209.8,115.62]
[1759120132904,7.66,209.84,209.8,115.62]
[1759120134608,4.2872,209.85,209.8,115.62]
[1759120135414,12.1872,209.85,209.8,115.62]
[1759120137312,4.2875,209.84,209.8,115.62]
[1759120138917,4.287,209.86,209.8,115.62]
[1759120139110,4.287,209.86,209.8,117.01492875]
[1759120139315,9.29492875,209.89,209.8,117.01492875]
[1759120139316,1.39492875,209.91,209.82,1.39492875]
[1759120140614,4.2866,209.88,209.82,1.39492875]
[1759120142917,4.2862,209.9,209.82,5.68262875]
[1759120143315,4.2862,209.9,209.82,13.66829332]
[1759120146720,12.1862,209.9,209.82,13.66829332]
[1759120147218,4.2865,209.89,209.82,13.66829332]
[1759120147718,4.2867,209.88,209.82,13.66829332]
[1759120147916,7.9,209.91,209.82,9.38059332]
[1759120148117,1.39492875,209.9,209.83,115.6]
[1759120148424,7.9,209.87,209.8,7.98566457]
[1759120148626,7.9,209.87,209.81,115.6]
[1759120149515,7.9,209.83,209.81,115.6]
[1759120151628,7.9,209.82,209.81,115.6]
[1759120153925,4.288,209.81,209.79,134.43243183]
[1759120154121,12.038,209.81,209.79,250.03243183]
[1759120154324,68.08272875,209.86,209.79,250.03243183]
[1759120154529,4.2876,209.83,209.79,250.03243183]
[1759120156832,12.0376,209.83,209.79,250.03243183]
[1759120157328,4.2879,209.82,209.8,115.6]
[1759120157525,12.0379,209.82,209.8,115.6]
[1759120160727,4.2879,209.82,209.8,115.6]
[1759120161025,7.75,209.81,209.8,115.6]
[1759120161233,4.2879,209.82,209.8,115.6]
[1759120161532,12.0379,209.82,209.8,115.6]
[1759120170431,7.55,209.8,209.79,14.30430029]
[1759120170636,4.2882,209.81,209.78,115.6]
[1759120170841,4.2882,209.81,209.78,130.23230264]
[1759120172436,4.2876,209.83,209.78,130.23230264]
[1759120172636,4.2876,209.83,209.78,138.21796721]
[1759120173438,4.2876,209.83,209.78,200.21796721]
[1759120173941,4.2876,209.83,209.78,138.21796721]
[1759120179637,4.2876,209.83,209.78,130.23230264]
[1759120179841,4.2876,209.83,209.78,138.21796721]
[1759120180039,4.2876,209.83,209.78,130.23230264]
[1759120180242,4.2876,209.83,209.78,138.21796721]
[1759120181445,4.2873,209.85,209.78,142.50646721]
[1759120181648,4.2873,209.85,209.78,143.90139596]
[1759120182353,7.55,209.91,209.81,7.98566457]
[1759120182551,7.55,209.91,209.84,1.39492875]
[1759120182751,7.55,209.91,209.85,115.58]
[1759120183651,4.2862,209.9,209.85,115.58]
[1759120185251,4.2862,209.9,209.86,115.58]
[1759120192056,11.8362,209.9,209.86,115.58]
[1759120193458,4.2865,209.89,209.86,115.58]
[1759120199358,4.2859,209.92,209.86,115.58]
[1759120199558,7.69,209.93,209.86,115.58]
[1759120200360,2.17848439,209.96,209.86,115.58]
[1759120200361,4.2854,209.94,209.86,123.56566457]
[1759120200561,4.2854,209.94,209.86,115.58]
[1759120200864,4.2857,209.93,209.86,115.58]
[1759120202165,7.69,209.96,209.86,115.58]
[1759120202166,4.2859,209.92,209.86,115.58]
[1759120202357,66.6531,209.97,209.85,4.2871]
[1759120202557,7.69,209.94,209.86,16.54]
[1759120203765,7.69,209.93,209.86,87.88]
[1759120204763,4.2865,209.89,209.86,87.88]
[1759120207667,7.69,209.95,209.86,87.88]
[1759120207866,7.69,209.99,209.86,87.88]
[1759120208163,7.69,209.99,209.87,2.17848439]
[1759120209666,4.2852,209.95,209.88,4.2864]
[1759120211367,4.2852,209.95,209.89,4.2862]
[1759120211569,11.9748,209.97,209.89,4.2862]
[1759120214164,4.2848,209.97,209.89,4.2862]
[1759120214369,4.2848,209.97,209.9,4.286]
[1759120216370,7.44,209.98,209.88,4.2865]
[1759120216964,66.6439,210.0,209.89,115.52]
[1759120217171,11.7248,209.97,209.89,115.52]
[1759120217974,4.2851,209.96,209.89,115.52]
[1759120219476,4.2853,209.95,209.89,115.52]
[1759120220572,11.7248,209.97,209.89,115.52]
[1759120220776,7.44,210.01,209.9,117.67848439]
[1759120221576,4.2844,209.99,209.9,121.96448439]
[1759120221776,66.6383,210.02,209.9,121.96448439]
[1759120222076,7.44,210.01,209.9,121.96448439]
[1759120222277,66.6383,210.02,209.9,121.96448439]
[1759120222470,7.44,210.01,209.9,121.96448439]
[1759120222670,4.2847,209.98,209.9,121.96448439]
[1759120223374,4.2849,209.97,209.9,121.96448439]
[1759120226278,4.2849,209.97,209.9,119.786]
[1759120226279,11.8549,209.97,209.9,119.786]
[1759120226784,7.57,209.95,209.9,115.5]
[1759120226976,66.6435,210.0,209.87,12.27226457]
[1759120227182,7.57,209.99,209.88,60.7]